Cogmind - Beta 13 @@@ ROGUE MODE // 2024.04.20 @ 19:28:27 Player: Cheeriohz Result: Destroyed by KL-F0H(R) with Subdweller Shrapnel Launcher Performance ------------- Evolutions (0) 0 Regions Visited (3) 600 Robots Destroyed (31) 155 Value Destroyed (804) 804 Prototype IDs (0) 0 Alien Tech Used (0) 0 Bonus (81) 81 TOTAL SCORE: 1640 Bonus ------- Follower Combat Kills 81 Cogmind --------- Core Integrity 0/250 Matter 294/300 Energy 250/250 System Corruption 3% Temperature Cool (0) Movement Treading (260) Ox1 Location -10/Subcaves Parts ------- > --- POWER (1) -------- Ion Engine > --- PROPULSION (2) --- Spiked Treads > --- UTILITY (2) ------ Large Storage Unit Structural Scanner > --- WEAPON (2) ------- Slug Cannon Mining Claw > --- INVENTORY (15) --- Compact Wheel Huge Storage Unit High-capacity Matter Pod (200) Improved Terrain Scanner Light Armor Plating Light Armor Plating Light Armor Plating Heavy Riot Gun Subdweller Laser Battle Rifle Subdweller Machine Gun Grenade Launcher Subdweller Shrapnel Launcher Subdweller Shrapnel Launcher Dirty Datajack (20) Peak State ------------ > --- POWER ------------ Ion Engine > --- PROPULSION ------- Light Treads Spiked Treads > --- UTILITY ---------- Large Storage Unit Light Armor Plating > --- WEAPON ----------- Heavy Riot Gun Slug Cannon > --- INVENTORY -------- Compact Wheel Huge Storage Unit High-capacity Matter Pod Structural Scanner Improved Terrain Scanner Light Armor Plating Light Armor Plating Subdweller Laser Battle Rifle Subdweller Machine Gun Grenade Launcher Subdweller Shrapnel Launcher Subdweller Shrapnel Launcher Dirty Datajack Mining Claw [Rating: 16] Favorites ----------- Power Ion Engine Engine Ion Engine Propulsion Light Treads Treads Light Treads Leg Aluminum Leg Wheel Wheel Utility Large Storage Unit Device Structural Scanner Storage Large Storage Unit Protection Light Armor Plating Weapon Battle Cannon Energy Gun Medium Laser Energy Cannon Subdweller Beam Cannon Ballistic Gun Heavy Assault Rifle Ballistic Cannon Battle Cannon Launcher Grenade Launcher Slashing Weapon Mining Claw Build | -11 -10 -10 -10 ------- Run | Yrd Mat Min Sub Slots Evolved . | . . . . Power . | . . . . Propulsion . | . . . . Utility . | . . . . Weapon . | . . . . Parts Attached 41 | 3 4 15 19 Power 2 | . . 1 1 Engine 2 | . . 1 1 Core . | . . . . Reactor . | . . . . Propulsion 10 | 2 1 4 3 Treads 5 | . . 3 2 Leg . | . . . . Wheel 5 | 2 1 1 1 Hover . | . . . . Flight . | . . . . Utility 9 | 1 1 3 4 Device 4 | 1 . 1 2 Storage 1 | . 1 . . Processor . | . . . . Hackware . | . . . . Protection 4 | . . 2 2 Artifact . | . . . . Weapon 20 | . 2 7 11 Energy Gun 3 | . . 2 1 Energy Cannon 1 | . . . 1 Ballistic Gun 4 | . 1 3 . Ballistic Cannon 5 | . . . 5 Launcher 3 | . 1 1 1 Special Weapon . | . . . . Impact Weapon . | . . . . Slashing Weapon 4 | . . 1 3 Piercing Weapon . | . . . . Special Melee Weapon . | . . . . Unidentified Prototypes . | . . . . Corrupted Parts 1 | . . 1 . System Corruption 2 | . . 2 . Parts Lost 9 | . 1 5 3 Power 2 | . . 1 1 Propulsion 5 | . 1 2 2 Utility 1 | . . 1 . Weapon 1 | . . 1 . Highest Loss Streak 5 | . 1 5 2 To Critical Strikes . | . . . . Average Slot Usage (%) 99 | . 99 99 99 Engine 13 | . 14 13 13 Treads 22 | . . 23 26 Wheel 4 | . 27 4 1 Device 10 | . 14 5 13 Storage 14 | . 14 14 14 Protection 3 | . . 8 . Energy Gun 7 | . 18 14 2 Energy Cannon 3 | . . . 6 Ballistic Gun 5 | . 8 13 . Ballistic Cannon 6 | . . . 11 Slashing Weapon 3 | . . . 6 Naked Turns . | . . . . Heaviest Build 39 | 12 29 33 39 Greatest Support 40 | 20 20 40 40 Greatest Overweight (x) 3 | 1 2 2 3 Average Overweight (x) . | . . . . Largest Inventory Capacity 15 | 8 15 15 15 Average Capacity 14 | 8 14 15 15 Most Carried 15 | 8 11 15 15 Average Carried 13 | 6 8 14 14 Final Capacity 15 | 8 15 15 15 Final Carried 15 | 7 11 15 15 Class Distribution -------------------- 97% | Mutant Dominant Class ---------------- Mutant | -10/Materials Mutant | -10/Mines Mutant | -10/Subcaves Resources | -11 -10 -10 -10 ----------- Run | Yrd Mat Min Sub Matter Collected 1227 | 215 56 458 498 Remotely . | . . . . Salvage Created 793 | 206 130 241 216 Parts 66 | 16 10 24 16 Haulers Intercepted . | . . . . Recyclers Shooed . | . . . . Parts Field Recycled . | . . . . Retrieved Matter . | . . . . Parts Self-Destructed 5 | . . . 5 Prevented . | . . . . Kills | -11 -10 -10 -10 ------- Run | Yrd Mat Min Sub Combat Hostiles Destroyed 22 | . 4 7 11 Guns 6 | . 2 4 . Cannons 6 | . . . 6 AOE 10 | . 2 3 5 Classes Destroyed 8 | 2 1 3 2 Builder 1 | . . 1 . Tunneler 5 | 5 . . . Recycler 1 | 1 . . . Turret 2 | . . . 2 Swarmer 7 | . . 3 4 Grunt 6 | . 4 2 . Sentry 3 | . . 2 1 Subdweller 6 | . . . 6 Best Kill Streak 6 | 6 2 3 4 Combat Bots Only 4 | . 2 3 4 Max Kills in Single Turn 3 | 1 1 1 3 Gunslinging . | . . . . Exploded 3 | . 1 1 3 Melee . | . . . . Uniques/NPCs Destroyed . | . . . . Combat | -11 -10 -10 -10 -------- Run | Yrd Mat Min Sub Hostile Shots Fired 164 | . 11 43 110 Missed 62 | . 3 13 46 Damage Taken 1497 | . 146 460 891 Core 267 | . 41 69 157 Absorbed by Shields . | . . . . Core Remaining (%) 100 | 100 . . . Volleys Fired 92 | 14 17 23 38 Largest 2 | 2 2 2 2 Hottest 119 | 80 60 73 119 Shots Fired 152 | 28 28 30 66 Gun 85 | 28 24 27 6 Cannon 56 | . . . 56 Launcher 11 | . 4 3 4 Special . | . . . . Kinetic 59 | . 11 8 40 Thermal 37 | 14 . 7 16 Explosive 11 | . 4 3 4 Electromagnetic 45 | 14 13 12 6 Robot Hit Streak 19 | 5 9 19 14 Robot Miss Streak 4 | 3 4 1 3 Penetration Max . | . . . . Secondary Targets . | . . . . Shots Hit Robots 97 | 16 14 26 41 Core Hits 48 | 7 11 13 17 Critical Kills . | . . . . Critical Parts Destroyed . | . . . . Critical Strikes 1 | . 1 . . Corrupt 1 | . 1 . . Melee Attacks 13 | . . 1 12 Impact . | . . . . Slashing 13 | . . 1 12 Piercing . | . . . . Sneak Attacks 1 | . . 1 . Combat Hostiles . | . . . . Follow-up Attacks . | . . . . Damage Inflicted 2309 | 215 358 541 1195 Guns 797 | 215 202 275 105 Cannons 797 | . . . 797 Explosions 667 | . 156 218 293 Melee 48 | . . 48 . Ramming . | . . . . Kinetic 750 | . 95 80 575 Thermal 544 | 66 . 136 342 Explosive 492 | . 156 163 173 Electromagnetic 475 | 149 107 114 105 Impact . | . . . . Slashing 48 | . . 48 . Piercing . | . . . . Highest Corruption 3 | . 1 3 3 Average Corruption 2 | . 1 2 3 Corruption Purged . | . . . . Corruption Blocked . | . . . . Effects 55 | . . 13 42 Message Errors 19 | . . 6 13 Matter Fused 14 | . . 3 11 Heat Flow Errors 8 | . . 2 6 Energy Discharges 7 | . . 2 5 Data Loss (minor) 5 | . . . 5 Misfires 1 | . . . 1 Alerts 1 | . . . 1 Overload Shots . | . . . . Overflow Damage 55 | . . 36 19 Projectiles 19 | . . . 19 Explosions 28 | . . 28 . Melee 8 | . . 8 . Knockbacks 5 | . . . 5 Impact . | . . . . Kinetic 5 | . . . 5 Secondary . | . . . . Self-Inflicted Damage 123 | . . 76 47 Shots 4 | . . 2 2 Rammed . | . . . . Targets Rammed . | . . . . Kicked . | . . . . Crushed . | . . . . Highest Temperature 152 | 108 18 141 152 Average Temperature 36 | 51 12 32 32 Received Heat Transfer 567 | . 63 201 303 Siege Activations . | . . . . Robots Corrupted . | . . . . Combat Hostiles . | . . . . Parts Fried 3 | 1 . 2 . Impact Corruptions . | . . . . Robots Melted . | . . . . Combat Hostiles . | . . . . Parts Melted 2 | . . . 2 Heat Transferred 783 | 150 . 237 396 Parts Sabotaged . | . . . . Parts Stolen . | . . . . Parts Stripped . | . . . . Power Chain Reactions 2 | . . 1 1 Alert | -11 -10 -10 -10 ------- Run | Yrd Mat Min Sub Peak Influence 204 | 30 204 160 . Initial 19 | . 19 7 . Average 42 | 13 70 34 . Maximum Alert Level 1 | . 1 . . Low Security (%) 99 | 100 99 100 . Level 1 . | . . . . Level 2 . | . . . . Level 3 . | . . . . Level 4 . | . . . . Level 5 . | . . . . High Security . | . . . . Max Security . | . . . . Squads Dispatched 1 | . 1 . . Investigation 1 | . 1 . . Extermination . | . . . . Reinforcement . | . . . . Assault . | . . . . Garrison . | . . . . Intercept . | . . . . Searches Triggered . | . . . . Construction Impeded . | . . . . Haulers Reinforced . | . . . . Active Scanning Responses . | . . . . Cargo Convoy Interrupts . | . . . . Stealth | -11 -10 -10 -10 --------- Run | Yrd Mat Min Sub Distress Signals 1 | . . 1 . Communications Jammed . | . . . . Distress Signals . | . . . . Times Spotted 69 | . 8 9 52 Peak Tracking Total 6 | . 3 3 6 Tactical Retreats 3 | . . . 3 Traps | -11 -10 -10 -10 ------- Run | Yrd Mat Min Sub Traps Triggered 1 | . 1 . . Indirectly . | . . . . Trap Hack Attempts . | . . . . Triggered . | . . . . Disarmed . | . . . . Reprogrammed . | . . . . Reused . | . . . . Traps Extracted . | . . . . Installed . | . . . . Triggered . | . . . . Machines | -11 -10 -10 -10 ---------- Run | Yrd Mat Min Sub Machines Disabled 3 | . 1 . 2 Max in Single Turn 2 | . 1 . 2 Machines Repaired . | . . . . Machines Dismantled . | . . . . Machines Sabotaged . | . . . . Overloaded Fab Kills . | . . . . Hacking | -11 -10 -10 -10 --------- Run | Yrd Mat Min Sub Machines Accessed 8 | . 7 . 1 Terminals 7 | . 7 . . Fabricators . | . . . . Repair Stations . | . . . . Recycling Units . | . . . . Scanalyzers . | . . . . Garrison Access . | . . . . Total Hacks 26 | . 23 . 3 Successful 11 | . 8 . 3 Failed 15 | . 15 . . Catastrophic 2 | . 2 . . Database Lockouts . | . . . . Manual 15 | . 15 . . Terminals 23 | . 23 . . Fabricators . | . . . . Repair Stations . | . . . . Recycling Units . | . . . . Scanalyzers . | . . . . Garrison Access . | . . . . Terminal Hacks 10 | . 7 . 3 Record 3 | . . . 3 Robot Analysis 3 | . 3 . . Locate Traps 1 | . 1 . . Hauler Manifests 1 | . 1 . . Registered Components 1 | . 1 . . Zone Layout 1 | . 1 . . Fabricator Hacks . | . . . . Repair Station Hacks . | . . . . Recycling Unit Hacks . | . . . . Scanalyzer . | . . . . Garrison Access Hacks . | . . . . Unauthorized Hacks 1 | . 1 . . Terminals 1 | . 1 . . Botnet 1 | . 1 . . Fabricators . | . . . . Repair Stations . | . . . . Recycling Units . | . . . . Scanalyzers . | . . . . Garrison Access . | . . . . Data Cores Recovered . | . . . . Used . | . . . . Hacking Detections 7 | . 7 . . Full Trace Events 1 | . 1 . . Feedback Events 1 | . 1 . . Corruption 1 | . 1 . . Feedback Blocked . | . . . . Robot Schematics Acquired . | . . . . Robots Built . | . . . . Authchips . | . . . . Time . | . . . . Total Robot Build Rating . | . . . . Part Schematics Acquired . | . . . . Parts Built . | . . . . Authchips . | . . . . Time . | . . . . Total Part Build Rating . | . . . . Parts Repaired . | . . . . Time . | . . . . Parts Recycled . | . . . . Recycled Matter . | . . . . Retrieved Matter . | . . . . Retrieved Components . | . . . . Parts Scanalyzed . | . . . . Part Schematics Acquired . | . . . . Parts Damaged . | . . . . Bothacking | -11 -10 -10 -10 ------------ Run | Yrd Mat Min Sub Used RIF Installer . | . . . . Robots Hacked . | . . . . Non-combat . | . . . . Combat . | . . . . Robot Hacks Applied . | . . . . Relay Couplers Released . | . . . . Fabnet Peak Effective % . | . . . . Robots Rewired . | . . . . Allies Hacked . | . . . . Hacks Repelled . | . . . . Allies | -11 -10 -10 -10 -------- Run | Yrd Mat Min Sub Total Allies 3 | . . 3 . Largest Group 3 | . . 3 3 Highest-Rated Group 40 | . . 40 40 Highest-Rated Ally 16 | . . 16 16 Total Orders . | . . . . Ally Attacks 30 | . . 7 23 Total Damage 335 | . . 95 240 Kills 5 | . . 3 2 Allies Corrupted . | . . . . Allies Melted . | . . . . Intel | -11 -10 -10 -10 ------- Run | Yrd Mat Min Sub Robot Analysis Total 3 | . 3 . . Derelict Logs Recovered 3 | . . 1 2 Drone Launches . | . . . . Drone Recoveries . | . . . . Exploration | -11 -10 -10 -10 ------------- Run | Yrd Mat Min Sub Turns Passed 4179 | 87 431 1316 2345 Spaces Moved 2495 | 33 339 770 1353 Core . | . . . . Treads 1839 | . . 626 1213 Legs 28 | 28 . . . Wheels 628 | 5 339 144 140 Hover . | . . . . Flight . | . . . . Fastest Speed 80 | 80 80 95 110 Average Speed 146 | 114 93 149 159 Slowest Speed 260 | 120 110 240 260 Overloaded Moves . | . . . . Propulsion Burnouts . | . . . . Robots Hopped . | . . . . Cave-ins Triggered . | . . . . Exploration Rate (%) 66 | 3 77 101 86 Regions Visited 3 Branch Regions 2 Pre-discovered Areas 2 | . . 1 1 Known Exits Taken . | . . . . Unknown Exits Taken 3 | 1 1 1 . Scrap Searched 8 | . . 1 7 Spaces Dug 5 | . . . 5 Terrain Destroyed 74 | . 25 31 18 Melee 5 | . . . 5 Projectile 3 | . . . 3 AOE 66 | . 25 31 10 Terrain Rammed . | . . . . Walls Destroyed . | . . . . Machines Disabled . | . . . . Actions | -11 -10 -10 -10 --------- Run | Yrd Mat Min Sub Total 2826 | 54 423 902 1447 Wait 143 | 1 58 78 6 Move 2492 | 32 338 769 1353 Hop . | . . . . Pick Up 23 | 1 5 9 8 Fast Attach 11 | 3 . 3 5 Attach 7 | . 1 4 2 Detach 3 | 1 . 2 . Swap 23 | . 3 8 12 Drop 19 | 2 1 5 11 Fire 92 | 14 17 23 38 Melee 13 | . . 1 12 Ram . | . . . . Kick . | . . . . Crush . | . . . . Escape Stasis . | . . . . Rewire . | . . . . Trap . | . . . . Miscellaneous . | . . . . Route ------- -11/Scrapyard -10/Materials (discovered 4 exits: [*Mat x2] / [*Min x2]) -10/Mines (discovered 3 exits: [*Mat x2] / *Sub) -10/Subcaves (discovered 3 exits: [*Mat x2] / [*Rec]) History --------- Turn | Location | Event 1 | -11/Scrapyard | Discovered new exit (range 3) 88 | -11/Scrapyard | Entered Materials 139 | -10/Materials | Discovered new exit (range 8) 265 | -10/Materials | Discovered new exit (range 13) 305 | -10/Materials | Build established: Mutant 382 | -10/Materials | Discovered new exit (range 14) 510 | -10/Materials | Discovered new exit (range 6) 519 | -10/Materials | Entered Mines 528 | -10/Mines | Met a Derelict bent on vengeance 646 | -10/Mines | Discovered new exit (range 8) 756 | -10/Mines | Lost 5 parts (1p2n1u1w) 863 | -10/Mines | Discovered new exit (range 8) 984 | -10/Mines | Learned 4 Materials zone layouts 1026 | -10/Mines | Learned location of Storage (-8) 1186 | -10/Mines | Assisted by bots powering up and referring to "LRC-V3" 1818 | -10/Mines | Discovered new exit (range 10) 1835 | -10/Mines | Entered Subcaves 1835 | -10/Subcaves | Accompanied by 3 allies 1933 | -10/Subcaves | A swath of the cavern ceiling suddenly collapsed 2059 | -10/Subcaves | Shifting Twisted Machinery released Sub. Shrapnel Launcher 2077 | -10/Subcaves | Shifting Twisted Machinery released Battle Cannon 2188 | -10/Subcaves | Discovered new exit (range 9) 2493 | -10/Subcaves | Disturbed a concealed Subdweller 2697 | -10/Subcaves | Learned location of Zion (-6) 2697 | -10/Subcaves | Met a Zionite searching for "candidates" 2952 | -10/Subcaves | Visited Clippyterm 2979 | -10/Subcaves | Shifting Twisted Machinery released Mak. Laser 2986 | -10/Subcaves | Shifting Twisted Machinery released Shrapnel Trap 3115 | -10/Subcaves | Core integrity fell below 50% 3281 | -10/Subcaves | Discovered new exit (range 16) 3310 | -10/Subcaves | Core integrity fell below 20% 3401 | -10/Subcaves | Learned 4 Materials zone layouts 3427 | -10/Subcaves | Learned Materials terminal intel 3540 | -10/Subcaves | Discovered new exit (range 10) 3628 | -10/Subcaves | Disturbed a concealed Subdweller 3629 | -10/Subcaves | Disturbed a concealed Subdweller 4180 | -10/Subcaves | Destroyed by KL-F0H(R) with Subdweller Shrapnel Launcher Last Messages --------------- 03715_ System corrupted: Energy discharge (-62). 03754_ Acquired 3 matter. 03782_ System corrupted: Component data lost. 03811_ 7C#TM8|CCBAHEP%:Z%0|E,YK6S2KLUO,CL UKFFV 03845_ System corrupted: Matter fused (-6). 03889_ System corrupted: Energy discharge (-60). 03889_ 65-PQY(u) tweaks Twisted Machinery. 03891_ Acquired 9 matter. 03892_ 65-PQY(u) tweaks Twisted Machinery. 03915_ System corrupted: Heat flow error (+158). 03925_ Acquired 31 matter. 04068_ System corrupted: Matter fused (-6). 04140_ System corrupted: Heat flow error (+131). 04158_ QVEYKR:SCT,M96L1,AX>RU =|VNY,HIX=PIA 04175_ Searching scrap... 04175_ Found Battle Rifle. 04175_ Found 16 Matter. 04176_ Acquired 6 matter. 04178_ Lgt. Treads destroyed. 04180_ System corrupted: Matter fused (-6). Map ----- +----------------------------------------------------+ | | | | | | | | | | | | | | | | | | | | | | | | | | | ?????????????????????????????????????????????????? | | ???????????????????????########??????????????????? | | ????????????????????##############???????????????? | | ???????????????????##### <<<""#####??????????????? | | ???????????????????### < ?" ###??????????????? | | ??????????????????### R ###?????????????? | | ??????????????????###< $$$ " "###?????????????? | | ?????????????????### $#$ ? ""##?????????????? | | ?????????????????### ^ $$$?? ##?????????????? | | ?????????????????##; ##?????????????? | | ?????????????????##; ;#### <##?????????????? | | ?????????????????### ;% <<##?????????????? | | ?????????????????## @ [ ##""###?????????????? | | ?????????????????## ;; ;# <##############?????? | | #######?????????####;;;;;;< <##############?????? | | #######??????###### ### " ##### ##?????? | | ## ##????## # ## ## ###????? | | ######?## ## ######?? | | ########## # ### % "#####?? | | """" ### ## #### ##### # ###? | | "#"" ? ### ###### ###### #### | | ## ???? ####### ### ## ### | | ## ###??? " ##### ## ## ### | | ## ####?# """"" ## ### ### ## | | ## ###### " "" #### ##### | | ## #### "## ##### ###### | | #### ### ""### ####### #### # ## | | ##### ## # "##### ######### #### | | ??####[# ""#### ???### #### ## | | ???## # "######???## ### ##### | | ???### # ""##??????### ### ####### | | ???## ### # ""##?????##### ## ## ### | | ???######### ###????###### ### | | ???######### ########## ## ##### ### | | ?????????### ######### ######## ### | | ????????#### ##### ## ## ####??### ## | | ?????###### ### ## ##?????## ## | +----------------------------------------------------+ Best States ------------- Heat Dissipation 25 Energy Generation 10 Energy Capacity 250 Matter Stores 300 Matter Capacity 300 Sight Range 16 Terrain Scan Density 10 Armor Coverage 150 Core Shielding 20 Evasion (%) 55 Recoil Reduction 2 Item Schematics ----------------- None Robot Schematics ------------------ None Fabricated ------------ Nothing Alien Tech Used ----------------- None Achievements -------------- None Challenges ------------ None Game ------ Seed GaussPhasingGuard Manual? 0 Play Time 00:25:37 Cumulative 139.3 hours Start 2024.04.20 @ 18:58:04 End 2024.04.20 @ 19:28:27 Sessions 1 Manual Loads 0 Difficulty Rogue Special Mode None Game No. 127 Rogue 127 Adventurer 0 Explorer 0 Win Type - Total 3 Types 2/0/0/1/0/0/0/0/0 Lore% 54 Gallery% 72 Achievement% 55 Wizard Run 0 Options --------- Layout 2 ASCII 0 Keyboard 1 Movement Numpad Keybinds 0 Fullscreen 1 Font 32/SmallcapsGlow Map View 77x44 Zoom Use 0% Tactical HUD 1 Map Filters NONE Filters NONE Steam 1 RUN: fe501be4-4934-43b7-b5fb-a1bf499c23ef